[Event "*** Titled Tuesday Blitz"]
[Site "Chess.com"]
[Date "2020.01.07"]
[Round "5"]
[White "CzechmVIII"]
[Black "dragos420"]
[Result "0-1"]
[WhiteElo "2166"]
[BlackElo "2435"]
[TimeControl "180+2"]
[EndTime "14:10:06 PST"]
[Termination "dragos420 won on time"]

1. e4 {[%clk 0:03:01.9]} 1... e5 {[%clk 0:03:00.9]} 2. Nf3 {[%clk 0:03:02.4]}
2... Nc6 {[%clk 0:03:02]} 3. Bb5 {[%clk 0:03:03.2]} 3... a6 {[%clk 0:03:02.8]}
4. Ba4 {[%clk 0:03:04.3]} 4... g6 {[%clk 0:03:03]} 5. d4 {[%clk 0:02:59.4]} 5...
b5 {[%clk 0:02:59]} 6. Bb3 {[%clk 0:02:57.9]} 6... exd4 {[%clk 0:03:00.9]} 7.
Bg5 {[%clk 0:02:55.5]} 7... Be7 {[%clk 0:02:59.1]} 8. Bxe7 {[%clk 0:02:54.5]}
8... Qxe7 {[%clk 0:03:01]} 9. Bd5 {[%clk 0:02:38.7]} 9... Nf6 {[%clk 0:02:55.1]}
10. O-O {[%clk 0:02:39.7]} 10... O-O {[%clk 0:02:54.3]} 11. Nxd4 {[%clk
0:02:25.6]} 11... Bb7 {[%clk 0:02:49.4]} 12. Nxc6 {[%clk 0:02:13.8]} 12... dxc6
{[%clk 0:02:46.8]} 13. Bb3 {[%clk 0:02:13.7]} 13... Rad8 {[%clk 0:02:46.3]} 14.
Qe2 {[%clk 0:02:12.3]} 14... Qxe4 {[%clk 0:02:46]} 15. Qxe4 {[%clk 0:02:05.1]}
15... Nxe4 {[%clk 0:02:47.9]} 16. f3 {[%clk 0:01:27.5]} 16... Nf6 {[%clk
0:02:38.4]} 17. c4 {[%clk 0:01:19.7]} 17... c5 {[%clk 0:02:33.6]} 18. Nc3 {[%clk
0:01:17.5]} 18... Rd2 {[%clk 0:02:18.6]} 19. cxb5 {[%clk 0:01:12.3]} 19... axb5
{[%clk 0:02:19.6]} 20. Nxb5 {[%clk 0:01:13.4]} 20... Ba6 {[%clk 0:02:19]} 21.
Bc4 {[%clk 0:01:09.1]} 21... Rxb2 {[%clk 0:02:18.7]} 22. Na3 {[%clk 0:00:45.8]}
22... Ra8 {[%clk 0:02:12.1]} 23. Rab1 {[%clk 0:00:26.4]} 23... Rxb1 {[%clk
0:01:56]} 24. Rxb1 {[%clk 0:00:28.3]} 24... Bxc4 {[%clk 0:01:57.2]} 25. Nxc4
{[%clk 0:00:29.5]} 25... Rxa2 {[%clk 0:01:58.8]} 26. Rc1 {[%clk 0:00:19.1]}
26... Nd7 {[%clk 0:01:42.6]} 27. f4 {[%clk 0:00:14.5]} 27... Ra6 {[%clk
0:01:40.3]} 28. Ne5 {[%clk 0:00:14.3]} 28... Nxe5 {[%clk 0:01:40]} 29. fxe5
{[%clk 0:00:16.2]} 29... Rc6 {[%clk 0:01:41.4]} 30. Rc4 {[%clk 0:00:17.4]} 30...
Kf8 {[%clk 0:01:42.6]} 31. Kf2 {[%clk 0:00:18.9]} 31... Ke8 {[%clk 0:01:44.1]}
32. Ke3 {[%clk 0:00:20.5]} 32... Ke7 {[%clk 0:01:45.4]} 33. Ke4 {[%clk 0:00:22]}
33... Ke6 {[%clk 0:01:46.8]} 34. g4 {[%clk 0:00:23.1]} 34... h6 {[%clk
0:01:45.5]} 35. h4 {[%clk 0:00:23.7]} 35... h5 {[%clk 0:01:46.5]} 36. g5 {[%clk
0:00:23.8]} 36... Ke7 {[%clk 0:01:43.8]} 37. Kd5 {[%clk 0:00:24.2]} 37... Kd7
{[%clk 0:01:44.9]} 38. Rf4 {[%clk 0:00:18.3]} 38... Re6 {[%clk 0:01:34.5]} 39.
Rxf7+ {[%clk 0:00:17.3]} 39... Re7 {[%clk 0:01:35.6]} 40. Rf4 {[%clk 0:00:12.9]}
40... c6+ {[%clk 0:01:35.3]} 41. Kxc5 {[%clk 0:00:10.2]} 41... Rxe5+ {[%clk
0:01:36.2]} 42. Kc4 {[%clk 0:00:08.4]} 42... Rf5 {[%clk 0:01:35.5]} 43. Rd4+
{[%clk 0:00:04.9]} 43... Ke6 {[%clk 0:01:35.9]} 44. Rd8 {[%clk 0:00:05.5]} 44...
Rf4+ {[%clk 0:01:35.8]} 45. Kc5 {[%clk 0:00:06.9]} 45... Rxh4 {[%clk 0:01:37.1]}
46. Kxc6 {[%clk 0:00:06.6]} 46... Kf5 {[%clk 0:01:37.7]} 47. Rd5+ {[%clk
0:00:06.2]} 47... Kf4 {[%clk 0:01:34.2]} 48. Kd6 {[%clk 0:00:07]} 48... Rg4
{[%clk 0:01:34.8]} 49. Rd4+ {[%clk 0:00:08]} 49... Kxg5 {[%clk 0:01:35.9]} 50.
Rd1 {[%clk 0:00:07]} 50... Rf4 {[%clk 0:01:36.1]} 51. Ke6 {[%clk 0:00:08.1]}
51... h4 {[%clk 0:01:36.6]} 52. Rg1+ {[%clk 0:00:08.9]} 52... Kh5 {[%clk
0:01:37.5]} 53. Ke5 {[%clk 0:00:10.2]} 53... Rf8 {[%clk 0:01:37.4]} 54. Ke4
{[%clk 0:00:07.8]} 54... g5 {[%clk 0:01:38.5]} 55. Ke3 {[%clk 0:00:08.9]} 55...
h3 {[%clk 0:01:39.8]} 56. Ra1 {[%clk 0:00:07.7]} 56... Kh4 {[%clk 0:01:39.9]}
57. Ra7 {[%clk 0:00:07.5]} 57... g4 {[%clk 0:01:40.3]} 58. Rh7+ {[%clk
0:00:05.5]} 58... Kg3 {[%clk 0:01:41.7]} 59. Rh6 {[%clk 0:00:03.4]} 59... Re8+
{[%clk 0:01:42.8]} 60. Kd2 {[%clk 0:00:04]} 60... h2 {[%clk 0:01:42.5]} 61. Rh7
{[%clk 0:00:03.6]} 61... Kg2 {[%clk 0:01:43.6]} 62. Rh4 {[%clk 0:00:04.8]} 62...
h1=Q {[%clk 0:01:43.6]} 63. Rxg4+ {[%clk 0:00:05.3]} 63... Kf3 {[%clk
0:01:43.3]} 0-1

[Event "*** Titled Tuesday Blitz"]
[Site "Chess.com"]
[Date "2020.01.07"]
[Round "5"]
[White "liczner"]
[Black "Sergey85Rodchenkov"]
[Result "1-0"]
[WhiteElo "2790"]
[BlackElo "2468"]
[TimeControl "180+2"]
[EndTime "14:10:12 PST"]
[Termination "liczner won on time"]

1. e4 {[%clk 0:03:01.9]} 1... c5 {[%clk 0:03:00.7]} 2. Nf3 {[%clk 0:03:03.2]}
2... e6 {[%clk 0:03:01.7]} 3. d4 {[%clk 0:03:03.9]} 3... cxd4 {[%clk 0:03:02.2]}
4. Nxd4 {[%clk 0:03:05.8]} 4... a6 {[%clk 0:03:02.6]} 5. Bd3 {[%clk 0:03:06.9]}
5... Qc7 {[%clk 0:03:03.2]} 6. O-O {[%clk 0:03:07.4]} 6... Nf6 {[%clk
0:03:03.4]} 7. Qe2 {[%clk 0:03:08.1]} 7... d6 {[%clk 0:03:03.9]} 8. c4 {[%clk
0:03:07.8]} 8... g6 {[%clk 0:03:04.1]} 9. Nc3 {[%clk 0:03:03.1]} 9... Bg7 {[%clk
0:03:04.9]} 10. h3 {[%clk 0:02:58.7]} 10... O-O {[%clk 0:03:05.4]} 11. Nf3
{[%clk 0:03:00.2]} 11... Nc6 {[%clk 0:03:04.2]} 12. Bf4 {[%clk 0:03:01.1]} 12...
Nd7 {[%clk 0:03:04.8]} 13. Rfd1 {[%clk 0:02:58.1]} 13... Nde5 {[%clk 0:03:04.5]}
14. Rac1 {[%clk 0:02:53.9]} 14... b6 {[%clk 0:02:43.5]} 15. Qe3 {[%clk
0:01:57.1]} 15... Nxf3+ {[%clk 0:02:34.9]} 16. Qxf3 {[%clk 0:01:59]} 16... Ne5
{[%clk 0:02:26.3]} 17. Qe3 {[%clk 0:01:58.2]} 17... Rb8 {[%clk 0:02:05.2]} 18.
Bh6 {[%clk 0:01:42]} 18... Bxh6 {[%clk 0:01:51.9]} 19. Qxh6 {[%clk 0:01:42.4]}
19... Bb7 {[%clk 0:01:53.1]} 20. Be2 {[%clk 0:01:29.1]} 20... Rfd8 {[%clk
0:01:45.4]} 21. f4 {[%clk 0:01:19]} 21... Nd7 {[%clk 0:01:16.2]} 22. Rf1 {[%clk
0:01:09.4]} 22... Nc5 {[%clk 0:00:59.5]} 23. f5 {[%clk 0:01:05.3]} 23... Qe7
{[%clk 0:00:58.7]} 24. f6 {[%clk 0:01:02.6]} 24... Qf8 {[%clk 0:00:59.7]} 25.
Qe3 {[%clk 0:01:03.3]} 25... Rbc8 {[%clk 0:00:56.3]} 26. Rf4 {[%clk 0:00:52.4]}
26... Nd7 {[%clk 0:00:54]} 27. Rcf1 {[%clk 0:00:49.6]} 27... Rc5 {[%clk
0:00:53.9]} 28. Nd1 {[%clk 0:00:28.9]} 28... Re5 {[%clk 0:00:49.8]} 29. Nf2
{[%clk 0:00:27.5]} 29... Nc5 {[%clk 0:00:42.7]} 30. b4 {[%clk 0:00:22.9]} 30...
Nd7 {[%clk 0:00:28.9]} 31. Nd3 {[%clk 0:00:16.3]} 31... Rc8 {[%clk 0:00:16.1]}
32. Nxe5 {[%clk 0:00:15.2]} 32... dxe5 {[%clk 0:00:17.7]} 33. Rh4 {[%clk
0:00:16.7]} 33... a5 {[%clk 0:00:16.8]} 34. a3 {[%clk 0:00:16.9]} 34... axb4
{[%clk 0:00:15.9]} 35. axb4 {[%clk 0:00:18.8]} 35... Ra8 {[%clk 0:00:16]} 36.
Kh2 {[%clk 0:00:15.1]} 36... Ra2 {[%clk 0:00:15.9]} 37. Bd3 {[%clk 0:00:09.2]}
37... Ra3 {[%clk 0:00:16.3]} 38. Qd2 {[%clk 0:00:04.6]} 38... h6 {[%clk
0:00:08.5]} 39. Bb1 {[%clk 0:00:05.3]} 39... Nb8 {[%clk 0:00:03.5]} 40. Rxh6
{[%clk 0:00:06.2]} 40... Nc6 {[%clk 0:00:04.7]} 41. Rh4 {[%clk 0:00:06.3]} 41...
Nd4 {[%clk 0:00:05.4]} 42. Rf2 {[%clk 0:00:04.9]} 42... Rb3 {[%clk 0:00:05.1]}
43. Ba2 {[%clk 0:00:03]} 43... Rxb4 {[%clk 0:00:05.7]} 44. Qg5 {[%clk
0:00:03.4]} 1-0

[Event "*** Titled Tuesday Blitz"]
[Site "Chess.com"]
[Date "2020.01.07"]
[Round "5"]
[White "Dhaydon19"]
[Black "Zq1"]
[Result "1-0"]
[WhiteElo "2692"]
[BlackElo "2519"]
[TimeControl "180+2"]
[EndTime "14:10:16 PST"]
[Termination "Dhaydon19 won by resignation"]

1. d4 {[%clk 0:03:01.7]} 1... Nf6 {[%clk 0:02:55.3]} 2. Nf3 {[%clk 0:03:02.5]}
2... e6 {[%clk 0:02:55.9]} 3. c4 {[%clk 0:03:03.3]} 3... a6 {[%clk 0:02:56.2]}
4. g3 {[%clk 0:03:03.5]} 4... c5 {[%clk 0:02:57.2]} 5. Bg2 {[%clk 0:03:04.2]}
5... cxd4 {[%clk 0:02:58.2]} 6. Nxd4 {[%clk 0:03:04.9]} 6... Qc7 {[%clk
0:02:59.8]} 7. Nd2 {[%clk 0:03:01]} 7... Nc6 {[%clk 0:02:57.1]} 8. Nxc6 {[%clk
0:03:01.3]} 8... dxc6 {[%clk 0:02:57.1]} 9. O-O {[%clk 0:03:02]} 9... e5 {[%clk
0:02:55.9]} 10. Qc2 {[%clk 0:03:02.4]} 10... a5 {[%clk 0:02:47.7]} 11. b3 {[%clk
0:03:01.6]} 11... Bc5 {[%clk 0:02:46.9]} 12. Bb2 {[%clk 0:03:02.2]} 12... O-O
{[%clk 0:02:47.6]} 13. Nf3 {[%clk 0:03:00.2]} 13... Re8 {[%clk 0:02:48]} 14. Ng5
{[%clk 0:02:59.4]} 14... h6 {[%clk 0:02:34.2]} 15. Ne4 {[%clk 0:02:59.9]} 15...
Nxe4 {[%clk 0:02:35.2]} 16. Bxe4 {[%clk 0:03:01.8]} 16... Bh3 {[%clk 0:02:35.7]}
17. Rfd1 {[%clk 0:03:00.9]} 17... Rad8 {[%clk 0:02:00.7]} 18. Rxd8 {[%clk
0:02:50.8]} 18... Rxd8 {[%clk 0:02:01.6]} 19. Rd1 {[%clk 0:02:52.7]} 19... Rxd1+
{[%clk 0:01:58.3]} 20. Qxd1 {[%clk 0:02:54.6]} 20... Qb6 {[%clk 0:01:58.6]} 21.
Qe1 {[%clk 0:02:26.5]} 21... Bd4 {[%clk 0:01:54]} 22. Bc1 {[%clk 0:02:20.1]}
22... f5 {[%clk 0:01:38.6]} 23. Bc2 {[%clk 0:02:16.6]} 23... c5 {[%clk
0:01:18.8]} 24. Bd2 {[%clk 0:02:16.4]} 24... Qc6 {[%clk 0:01:10.5]} 25. e4
{[%clk 0:02:15.9]} 25... a4 {[%clk 0:00:45.1]} 26. bxa4 {[%clk 0:02:14.5]} 26...
f4 {[%clk 0:00:43.2]} 27. Qe2 {[%clk 0:01:54.8]} 27... Qg6 {[%clk 0:00:31.7]}
28. Kh1 {[%clk 0:01:50.7]} 28... Bg4 {[%clk 0:00:28.8]} 29. f3 {[%clk
0:01:50.6]} 29... Bh3 {[%clk 0:00:29.4]} 30. Be1 {[%clk 0:01:47.4]} 30... h5
{[%clk 0:00:27.5]} 31. Bd3 {[%clk 0:01:36.6]} 31... Qg5 {[%clk 0:00:27.6]} 32.
Bd2 {[%clk 0:01:32.6]} 32... Qg6 {[%clk 0:00:27.4]} 33. Be1 {[%clk 0:01:30.8]}
33... Qb6 {[%clk 0:00:28.1]} 34. Qc2 {[%clk 0:01:25]} 34... Qf6 {[%clk
0:00:24.5]} 35. Be2 {[%clk 0:01:21.2]} 35... fxg3 {[%clk 0:00:22.7]} 36. hxg3
{[%clk 0:01:21.7]} 36... Qg5 {[%clk 0:00:23.1]} 37. Qd2 {[%clk 0:01:17.6]} 37...
Qg6 {[%clk 0:00:24]} 38. Kh2 {[%clk 0:01:16.9]} 38... Be6 {[%clk 0:00:24]} 39.
Kg2 {[%clk 0:01:07.3]} 39... Qf7 {[%clk 0:00:24.5]} 40. Qc2 {[%clk 0:01:01.1]}
40... Qf6 {[%clk 0:00:25.3]} 41. Bf2 {[%clk 0:01:00.9]} 41... g5 {[%clk
0:00:25.3]} 42. Bxd4 {[%clk 0:01:01.9]} 42... cxd4 {[%clk 0:00:26.5]} 43. Qb3
{[%clk 0:01:01]} 43... g4 {[%clk 0:00:22.1]} 44. fxg4 {[%clk 0:01:02.1]} 44...
hxg4 {[%clk 0:00:22.3]} 45. Qxb7 {[%clk 0:01:02.8]} 45... Qg5 {[%clk 0:00:23.4]}
46. Qb8+ {[%clk 0:01:02.9]} 46... Kf7 {[%clk 0:00:24]} 47. Qc7+ {[%clk
0:01:04.2]} 47... Kg6 {[%clk 0:00:24.2]} 48. Qd6 {[%clk 0:01:04.6]} 48... Kf7
{[%clk 0:00:24.3]} 49. Qc7+ {[%clk 0:01:03.8]} 49... Kg6 {[%clk 0:00:24.7]} 50.
Qb6 {[%clk 0:01:05.7]} 50... Kf7 {[%clk 0:00:24.9]} 51. Qa7+ {[%clk 0:01:05.6]}
51... Kg6 {[%clk 0:00:25.3]} 52. Qa6 {[%clk 0:01:06.9]} 52... Kf7 {[%clk
0:00:25.8]} 53. c5 {[%clk 0:01:08.2]} 53... Qe3 {[%clk 0:00:24.6]} 54. Qd3
{[%clk 0:01:08]} 54... Qc1 {[%clk 0:00:25.5]} 55. a5 {[%clk 0:01:05.2]} 55...
Qxc5 {[%clk 0:00:26.3]} 56. a6 {[%clk 0:01:07.1]} 56... Qa5 {[%clk 0:00:26.8]}
57. Qc2 {[%clk 0:01:06]} 57... Bxa2 {[%clk 0:00:21.8]} 58. Bxg4 {[%clk
0:01:04.5]} 58... Be6 {[%clk 0:00:19.8]} 59. Bxe6+ {[%clk 0:01:05.3]} 59... Kxe6
{[%clk 0:00:20.7]} 60. Qc6+ {[%clk 0:01:07]} 60... Kf7 {[%clk 0:00:21.2]} 61.
Qd5+ {[%clk 0:01:07]} 61... Kf6 {[%clk 0:00:21]} 62. Qxa5 {[%clk 0:01:08.4]} 1-0

[Event "*** Titled Tuesday Blitz"]
[Site "Chess.com"]
[Date "2020.01.07"]
[Round "5"]
[White "Zubrrr"]
[Black "Jbd735"]
[Result "1-0"]
[WhiteElo "2740"]
[BlackElo "2461"]
[TimeControl "180+2"]
[EndTime "14:10:17 PST"]
[Termination "Zubrrr won on time"]

1. d4 {[%clk 0:03:01.9]} 1... d5 {[%clk 0:03:00.9]} 2. c4 {[%clk 0:03:01.5]}
2... c6 {[%clk 0:03:01.8]} 3. Nf3 {[%clk 0:03:02.3]} 3... e6 {[%clk 0:03:02.5]}
4. Nc3 {[%clk 0:03:03.1]} 4... Nf6 {[%clk 0:03:03.4]} 5. Bg5 {[%clk 0:03:03.7]}
5... h6 {[%clk 0:02:56.8]} 6. Bxf6 {[%clk 0:02:54.8]} 6... Qxf6 {[%clk
0:02:58.7]} 7. e3 {[%clk 0:02:55.6]} 7... Nd7 {[%clk 0:02:53.5]} 8. Qb3 {[%clk
0:02:46.2]} 8... g6 {[%clk 0:02:46.6]} 9. Bd3 {[%clk 0:02:39.5]} 9... Bg7 {[%clk
0:02:47]} 10. O-O {[%clk 0:02:40.1]} 10... O-O {[%clk 0:02:47.8]} 11. Rad1
{[%clk 0:02:27.7]} 11... dxc4 {[%clk 0:02:36.4]} 12. Bxc4 {[%clk 0:02:28.6]}
12... b5 {[%clk 0:02:37.3]} 13. Be2 {[%clk 0:02:24.4]} 13... a6 {[%clk
0:02:30.9]} 14. Ne4 {[%clk 0:02:23.7]} 14... Qe7 {[%clk 0:02:28.2]} 15. Rc1
{[%clk 0:02:23.2]} 15... Bb7 {[%clk 0:02:24.4]} 16. Nc5 {[%clk 0:02:23.9]} 16...
Nxc5 {[%clk 0:02:20]} 17. Rxc5 {[%clk 0:02:25.8]} 17... Rad8 {[%clk 0:01:48.9]}
18. Rfc1 {[%clk 0:02:24.7]} 18... Rd5 {[%clk 0:01:46.8]} 19. Bd3 {[%clk
0:01:40.9]} 19... Rfd8 {[%clk 0:01:43.4]} 20. Be4 {[%clk 0:01:38.9]} 20... Rxc5
{[%clk 0:01:31.1]} 21. Rxc5 {[%clk 0:01:40.8]} 21... Qd6 {[%clk 0:01:14.6]} 22.
Qc2 {[%clk 0:01:37.7]} 22... Rc8 {[%clk 0:00:56.1]} 23. g3 {[%clk 0:01:36.9]}
23... Bf8 {[%clk 0:00:56.9]} 24. a3 {[%clk 0:01:15.6]} 24... f5 {[%clk
0:00:39.1]} 25. Bd3 {[%clk 0:01:16]} 25... Qd8 {[%clk 0:00:36.7]} 26. Rc3 {[%clk
0:01:13.3]} 26... c5 {[%clk 0:00:31.1]} 27. Ne5 {[%clk 0:01:08.1]} 27... cxd4
{[%clk 0:00:20.6]} 28. Rxc8 {[%clk 0:01:07.3]} 28... Qxc8 {[%clk 0:00:13.7]} 29.
Qxc8 {[%clk 0:01:03.4]} 29... Bxc8 {[%clk 0:00:15.6]} 30. exd4 {[%clk
0:00:56.3]} 30... Kg7 {[%clk 0:00:14]} 31. f4 {[%clk 0:00:56]} 31... Bb7 {[%clk
0:00:12]} 32. Kf2 {[%clk 0:00:53]} 32... Bd6 {[%clk 0:00:10.6]} 33. Ke3 {[%clk
0:00:53.7]} 33... Kf6 {[%clk 0:00:09.9]} 34. Nd7+ {[%clk 0:00:39.4]} 34... Ke7
{[%clk 0:00:10.7]} 35. Nc5 {[%clk 0:00:40.7]} 35... Bc8 {[%clk 0:00:09.7]} 36.
b4 {[%clk 0:00:39.7]} 36... g5 {[%clk 0:00:09.8]} 37. Bc2 {[%clk 0:00:40.1]}
37... Kf6 {[%clk 0:00:09.3]} 38. Bb3 {[%clk 0:00:40.2]} 38... gxf4+ {[%clk
0:00:08.2]} 39. gxf4 {[%clk 0:00:40.7]} 39... h5 {[%clk 0:00:08.3]} 40. Bd1
{[%clk 0:00:22.8]} 40... Kg6 {[%clk 0:00:08]} 41. a4 {[%clk 0:00:21.2]} 41...
bxa4 {[%clk 0:00:07.6]} 42. Bxa4 {[%clk 0:00:23.1]} 42... h4 {[%clk 0:00:06]}
43. h3 {[%clk 0:00:20.4]} 43... Bxc5 {[%clk 0:00:04.8]} 44. dxc5 {[%clk
0:00:19.9]} 44... Kf6 {[%clk 0:00:04.5]} 45. Bc6 {[%clk 0:00:20]} 45... e5
{[%clk 0:00:04.5]} 46. Bd5 {[%clk 0:00:12.3]} 46... e4 {[%clk 0:00:05.2]} 47.
Kd4 {[%clk 0:00:12.9]} 47... Bd7 {[%clk 0:00:05.1]} 48. Bb7 {[%clk 0:00:11.1]}
48... Bb5 {[%clk 0:00:04.3]} 49. c6 {[%clk 0:00:12.2]} 1-0

[Event "*** Titled Tuesday Blitz"]
[Site "Chess.com"]
[Date "2020.01.07"]
[Round "5"]
[White "r31415"]
[Black "ahachess"]
[Result "1-0"]
[WhiteElo "2471"]
[BlackElo "2246"]
[TimeControl "180+2"]
[EndTime "14:10:23 PST"]
[Termination "r31415 won by resignation"]

1. d4 {[%clk 0:03:01.9]} 1... g6 {[%clk 0:02:56]} 2. e4 {[%clk 0:03:01]} 2...
Bg7 {[%clk 0:02:57.3]} 3. Nc3 {[%clk 0:03:02]} 3... a6 {[%clk 0:02:58.2]} 4. g4
{[%clk 0:02:56.2]} 4... d6 {[%clk 0:02:58]} 5. h4 {[%clk 0:02:49.8]} 5... h5
{[%clk 0:02:57.6]} 6. gxh5 {[%clk 0:02:49.6]} 6... gxh5 {[%clk 0:02:48.5]} 7.
Nge2 {[%clk 0:02:34.9]} 7... Bg4 {[%clk 0:02:36.4]} 8. Bg2 {[%clk 0:02:26.2]}
8... Nc6 {[%clk 0:02:36]} 9. f3 {[%clk 0:02:25.7]} 9... Bd7 {[%clk 0:02:36.6]}
10. Be3 {[%clk 0:02:26.5]} 10... e5 {[%clk 0:02:30.3]} 11. Qd2 {[%clk
0:01:55.7]} 11... Bf6 {[%clk 0:02:13.5]} 12. O-O-O {[%clk 0:01:23.9]} 12... Nge7
{[%clk 0:01:36.9]} 13. Rdg1 {[%clk 0:01:05.5]} 13... Ng6 {[%clk 0:01:33.9]} 14.
Nd5 {[%clk 0:00:58.7]} 14... exd4 {[%clk 0:00:59.3]} 15. Nxd4 {[%clk 0:00:55.3]}
15... Nce5 {[%clk 0:00:56.2]} 16. Bg5 {[%clk 0:00:45.3]} 16... Bxg5 {[%clk
0:00:52.1]} 17. hxg5 {[%clk 0:00:44.9]} 17... c6 {[%clk 0:00:33.3]} 18. Nf6+
{[%clk 0:00:45.7]} 18... Kf8 {[%clk 0:00:34.9]} 19. Rxh5 {[%clk 0:00:26.4]}
19... Rxh5 {[%clk 0:00:30.6]} 20. Nxh5 {[%clk 0:00:27.5]} 20... c5 {[%clk
0:00:30.1]} 21. Nf5 {[%clk 0:00:26.7]} 21... Bxf5 {[%clk 0:00:29.4]} 22. exf5
{[%clk 0:00:27.8]} 22... Nh4 {[%clk 0:00:30.6]} 23. Qf4 {[%clk 0:00:12.2]} 23...
Qa5 {[%clk 0:00:21.9]} 24. Qxh4 {[%clk 0:00:09.2]} 24... Qxa2 {[%clk 0:00:18.3]}
25. g6 {[%clk 0:00:04.6]} 25... Qa1+ {[%clk 0:00:10.4]} 26. Kd2 {[%clk
0:00:05.3]} 26... Qxb2 {[%clk 0:00:10.3]} 27. g7+ {[%clk 0:00:04.3]} 27... Kg8
{[%clk 0:00:10.7]} 28. Nf6+ {[%clk 0:00:04.4]} 28... Kxg7 {[%clk 0:00:12.2]} 29.
Bf1+ {[%clk 0:00:04.4]} 29... Kf8 {[%clk 0:00:12]} 30. Qh8+ {[%clk 0:00:04.4]}
30... Ke7 {[%clk 0:00:13.4]} 31. Nd5+ {[%clk 0:00:05.7]} 31... Kd7 {[%clk
0:00:14.3]} 32. Qxa8 {[%clk 0:00:06.1]} 32... Qd4+ {[%clk 0:00:14.6]} 33. Bd3
{[%clk 0:00:05.5]} 33... Qxd5 {[%clk 0:00:13.9]} 34. Rg8 {[%clk 0:00:03.8]}
34... Nxf3+ {[%clk 0:00:14.9]} 35. Kc1 {[%clk 0:00:04.7]} 35... Kc6 {[%clk
0:00:07.2]} 36. Qc8+ {[%clk 0:00:04.7]} 36... Kb6 {[%clk 0:00:08.7]} 37. Qd8+
{[%clk 0:00:06]} 37... Ka7 {[%clk 0:00:09.8]} 38. Qa8+ {[%clk 0:00:06.2]} 38...
Kb6 {[%clk 0:00:11.3]} 39. Qd8+ {[%clk 0:00:08.1]} 39... Ka7 {[%clk 0:00:12.7]}
40. Qa5 {[%clk 0:00:07]} 40... Qd4 {[%clk 0:00:10.4]} 41. Rd8 {[%clk 0:00:02.6]}
41... Qf4+ {[%clk 0:00:09.5]} 42. Kb2 {[%clk 0:00:03.3]} 42... Qd4+ {[%clk
0:00:09.3]} 43. Kc1 {[%clk 0:00:03.7]} 43... Qf4+ {[%clk 0:00:10.4]} 44. Kb1
{[%clk 0:00:05.2]} 44... Nd2+ {[%clk 0:00:10.4]} 45. Kb2 {[%clk 0:00:04.9]}
45... c4 {[%clk 0:00:09.8]} 46. Qc7 {[%clk 0:00:04.1]} 46... Qd4+ {[%clk
0:00:10.5]} 47. c3 {[%clk 0:00:03.7]} 47... Qxd3 {[%clk 0:00:11.7]} 48. Qb8+
{[%clk 0:00:05]} 48... Kb6 {[%clk 0:00:12.3]} 49. Rxd6+ {[%clk 0:00:06.9]} 49...
Ka5 {[%clk 0:00:12.4]} 50. Rxd3 {[%clk 0:00:07.5]} 50... cxd3 {[%clk 0:00:14.3]}
51. Qc7+ {[%clk 0:00:08.4]} 51... Kb5 {[%clk 0:00:14.9]} 52. Qe5+ {[%clk
0:00:09.1]} 52... Kc4 {[%clk 0:00:16.7]} 53. Qf4+ {[%clk 0:00:08.1]} 53... Kb5
{[%clk 0:00:18.6]} 54. Qxd2 {[%clk 0:00:09.1]} 54... Kc4 {[%clk 0:00:19.3]} 55.
Qf4+ {[%clk 0:00:10.1]} 1-0

[Event "*** Titled Tuesday Blitz"]
[Site "Chess.com"]
[Date "2020.01.07"]
[Round "5"]
[White "iLuusions"]
[Black "W_Amadeus"]
[Result "1/2-1/2"]
[WhiteElo "2469"]
[BlackElo "2670"]
[TimeControl "180+2"]
[EndTime "14:10:25 PST"]
[Termination "Game drawn by agreement"]

1. d4 {[%clk 0:03:01.1]} 1... Nf6 {[%clk 0:03:00.5]} 2. c4 {[%clk 0:03:03]} 2...
e6 {[%clk 0:03:01.7]} 3. Nf3 {[%clk 0:03:03.3]} 3... d5 {[%clk 0:03:02.7]} 4. g3
{[%clk 0:03:04.6]} 4... Be7 {[%clk 0:03:02.3]} 5. Bg2 {[%clk 0:03:06]} 5... O-O
{[%clk 0:03:03.9]} 6. O-O {[%clk 0:03:07.9]} 6... dxc4 {[%clk 0:03:05.2]} 7. Qc2
{[%clk 0:03:08.6]} 7... a6 {[%clk 0:03:06.4]} 8. a4 {[%clk 0:03:09.8]} 8... Bd7
{[%clk 0:03:07.8]} 9. Qxc4 {[%clk 0:03:10.5]} 9... Bc6 {[%clk 0:03:08.6]} 10.
Bf4 {[%clk 0:03:12]} 10... Bd6 {[%clk 0:03:06.2]} 11. Qc1 {[%clk 0:03:12.8]}
11... Nbd7 {[%clk 0:03:05.8]} 12. Nc3 {[%clk 0:03:10.3]} 12... b5 {[%clk
0:03:04.3]} 13. Re1 {[%clk 0:02:16.1]} 13... Qb8 {[%clk 0:02:43.7]} 14. Nb1
{[%clk 0:01:27.5]} 14... Qb7 {[%clk 0:02:35]} 15. Bxd6 {[%clk 0:01:20.7]} 15...
cxd6 {[%clk 0:02:35.9]} 16. Qf4 {[%clk 0:01:22.6]} 16... bxa4 {[%clk 0:02:22.6]}
17. Qxd6 {[%clk 0:01:16]} 17... Ne4 {[%clk 0:01:22.7]} 18. Qa3 {[%clk
0:01:13.4]} 18... Rfb8 {[%clk 0:01:13.6]} 19. Nc3 {[%clk 0:01:11.2]} 19... Qxb2
{[%clk 0:01:01.6]} 20. Ng5 {[%clk 0:00:21.5]} 20... Qxc3 {[%clk 0:00:20.3]} 21.
Qxc3 {[%clk 0:00:16.6]} 21... Nxc3 {[%clk 0:00:21.1]} 22. Bxc6 {[%clk
0:00:18.3]} 22... Ra7 {[%clk 0:00:22.7]} 23. Bxa4 {[%clk 0:00:19.3]} 23... Nb6
{[%clk 0:00:17.4]} 24. Bc2 {[%clk 0:00:18]} 24... h6 {[%clk 0:00:15.9]} 25. Ne4
{[%clk 0:00:15]} 25... Nbd5 {[%clk 0:00:10.6]} 26. Nxc3 {[%clk 0:00:14.2]} 26...
Nxc3 {[%clk 0:00:12.5]} 27. Ra3 {[%clk 0:00:15.4]} 27... Nb5 {[%clk 0:00:12.8]}
28. Ra4 {[%clk 0:00:12]} 28... a5 {[%clk 0:00:09.6]} 29. Rb1 {[%clk 0:00:04.7]}
29... Rbb7 {[%clk 0:00:04.2]} 30. Bd3 {[%clk 0:00:04.9]} 30... Nd6 {[%clk
0:00:04.8]} 31. Rc1 {[%clk 0:00:05]} 31... Kf8 {[%clk 0:00:05.5]} 32. Rc6 {[%clk
0:00:05.7]} 32... Ke7 {[%clk 0:00:06.4]} 33. Rc5 {[%clk 0:00:04.7]} 33... Rb4
{[%clk 0:00:05.4]} 34. Raxa5 {[%clk 0:00:04.6]} 34... Rxa5 {[%clk 0:00:06.4]}
35. Rxa5 {[%clk 0:00:06.5]} 35... Rxd4 {[%clk 0:00:08]} 36. Ra7+ {[%clk
0:00:08.3]} 36... Kf8 {[%clk 0:00:09]} 37. f3 {[%clk 0:00:09.5]} 37... Rb4
{[%clk 0:00:09.3]} 38. Kf2 {[%clk 0:00:10.8]} 38... Rb8 {[%clk 0:00:10.3]} 39.
Rd7 {[%clk 0:00:11.4]} 39... Ne8 {[%clk 0:00:10.8]} 40. g4 {[%clk 0:00:11.3]}
40... Nf6 {[%clk 0:00:12]} 41. Ra7 {[%clk 0:00:12.4]} 41... Rd8 {[%clk
0:00:12.3]} 42. h4 {[%clk 0:00:13]} 42... Nd5 {[%clk 0:00:11.8]} 43. Kg3 {[%clk
0:00:13.4]} 43... g5 {[%clk 0:00:11.8]} 44. hxg5 {[%clk 0:00:13.1]} 44... hxg5
{[%clk 0:00:13.7]} 45. Ra5 {[%clk 0:00:13.7]} 45... Kg7 {[%clk 0:00:10.8]} 46.
Bc4 {[%clk 0:00:14.1]} 46... Kf6 {[%clk 0:00:08.9]} 47. Bxd5 {[%clk 0:00:10.7]}
47... exd5 {[%clk 0:00:10.8]} 48. Ra6+ {[%clk 0:00:04.6]} 48... Kg7 {[%clk
0:00:11.8]} 49. Ra5 {[%clk 0:00:04.9]} 49... f6 {[%clk 0:00:13]} 50. e3 {[%clk
0:00:05.9]} 50... d4 {[%clk 0:00:13.7]} 51. exd4 {[%clk 0:00:06.8]} 51... Rxd4
{[%clk 0:00:15.6]} 1/2-1/2